fUSD/lending_fUSD_20240804
["ID","MTS","AMOUNT","RATE_DAILY","PERIOD"]
[334162271,1722805853705,-1974.83,0.00023013,9]
[334162272,1722805853714,-1490.37,0.00023013,9]
[334162273,1722805853724,-500.0,0.00023013,9]
[334162274,1722805853734,-500.0,0.00023013,9]
[334162275,1722805853744,-500.0,0.00023013,9]
[334162276,1722805853754,-500.0,0.00023013,9]
[334162277,1722805853764,-1163.87,0.00023013,9]
[334162278,1722805853774,-838.33,0.00023013,9]
[334162279,1722805853784,-529.16,0.00023013,9]
[334162280,1722805853794,-505.00264712,0.00023013,9]
[334162281,1722805853804,-974.84,0.00023013,9]
[334162282,1722805853814,-15920.46,0.00023013,9]
[334162283,1722805853824,-4240.5,0.00023013,9]
[334162284,1722805853837,-5400.18,0.00023013,9]
[334162285,1722805853847,-500.0,0.00023013,9]
[334162286,1722805853857,-500.0,0.00023013,9]
[334162287,1722805853867,-590.46,0.00023013,9]
[334162288,1722805853877,-500.0,0.00023013,9]
[334162289,1722805853887,-500.0,0.00023013,9]
[334162290,1722805853898,-500.0,0.00023013,9]
[334162291,1722805853908,-3908.25,0.00023013,9]
[334162292,1722805853918,-500.0,0.00023013,9]
[334162293,1722805853928,-500.0,0.00023013,9]
[334162294,1722805853939,-500.0,0.00023013,9]
[334162295,1722805853949,-500.0,0.00023013,2]
[334162296,1722805853959,-500.0,0.00023013,9]
[334162297,1722805853968,-500.0,0.00023013,9]
[334162298,1722805853979,-500.0,0.00023013,9]
[334162299,1722805853989,-529.53,0.00023013,9]
[334162300,1722805853999,-500.0,0.00023013,9]
[334162301,1722805854009,-500.0,0.00023013,9]
[334162302,1722805854019,-500.0,0.00023013,9]
[334162303,1722805854029,-500.0,0.00023013,9]
[334162304,1722805854039,-813.32,0.00023013,9]
[334162305,1722805854050,-500.0,0.00023013,9]
[334162306,1722805854059,-585.12,0.00023013,9]
[334162307,1722805854070,-4692.4,0.00023013,9]
[334162308,1722805854080,-500.0,0.00023013,9]
[334162309,1722805854092,-500.0,0.00023013,9]
[334162310,1722805854102,-500.0,0.00023013,9]
[334162311,1722805854112,-500.0,0.00023013,9]
[334162312,1722805854122,-500.0,0.00023013,9]
[334162313,1722805854132,-2368.57,0.00023013,9]
[334162314,1722805854143,-1822.82,0.00023013,9]
[334162315,1722805854153,-1306.56,0.00023013,9]
[334162316,1722805854163,-500.0,0.00023013,9]
[334162317,1722805854173,-1782.24,0.00023013,9]
[334162318,1722805854184,-500.0,0.00023013,9]
[334162319,1722805854195,-532.36,0.00023013,9]
[334162320,1722805854204,-584.45,0.00023013,9]
[334162321,1722805854215,-501.40521367,0.00023013,9]
[334162322,1722805854225,-3279.94,0.00023013,9]
[334162323,1722805854235,-1802.61,0.00023013,9]
[334162324,1722805854246,-500.0,0.00023013,9]
[334162325,1722805854257,-500.0,0.00023013,9]
[334162326,1722805854267,-1732.98,0.00023013,9]
[334162327,1722805854278,-570.5,0.00023013,9]
[334162328,1722805854288,-1593.38,0.00023013,9]
[334162329,1722805854298,-500.0,0.00023013,9]
[334162330,1722805854308,-500.0,0.00023013,9]
[334162331,1722805854319,-500.0,0.00023013,9]
[334162332,1722805854330,-704.27,0.00023013,9]
[334162333,1722805854604,-1389.19,0.00023013,9]
[334162334,1722805854617,-500.0,0.00023013,9]
[334162335,1722805854626,-1292.52,0.00023013,9]
[334162336,1722805854635,-749.6,0.00023013,9]
[334162337,1722805854647,-795.55,0.00023013,9]
[334162338,1722805854657,-500.0,0.00023013,9]
[334162339,1722805854667,-500.0,0.00023013,9]
[334162340,1722805854676,-2234.5,0.00023013,9]
[334162341,1722805854685,-500.0,0.00023013,9]
[334162342,1722805854695,-1619.53,0.00023013,9]
[334162343,1722805854704,-500.0,0.00023013,9]
[334162344,1722805854713,-1978.79,0.00023013,9]
[334162345,1722805854722,-500.0,0.00023013,9]
[334162346,1722805854731,-1324.25,0.00023013,9]
[334162347,1722805854740,-500.0,0.00023013,9]
[334162348,1722805854750,-152.32523705,0.00023013,9]
[334162349,1722805854759,-4642.9,0.00023013,9]
[334162350,1722805854769,-500.0,0.00023013,9]
[334162351,1722805854779,-151.0,0.00023013,7]
[334162352,1722805854788,-151.0,0.00023013,7]
[334162353,1722805854798,-151.0,0.00023013,7]
[334162354,1722805854808,-151.0,0.00023013,7]
[334162355,1722805854818,-748.9,0.00023013,9]
[334162356,1722805854827,-500.0,0.00023013,9]
[334162357,1722805854837,-500.0,0.00023013,9]
[334162358,1722805854847,-500.0,0.00023013,9]
[334162359,1722805854856,-1486.81,0.00023013,9]
[334162360,1722805854866,-1702.1,0.00023013,9]
[334162361,1722805854875,-1192.94,0.00023013,9]
[334162362,1722805854885,-905.71,0.00023013,9]
[334162363,1722805854895,-551.73,0.00023013,9]
[334162364,1722805854904,-500.0,0.00023013,9]
[334162365,1722805854914,-1520.77,0.00023013,9]
[334162366,1722805854924,-500.0,0.00023013,9]
[334162367,1722805854933,-500.0,0.00023013,9]
[334162368,1722805854942,-500.0,0.00023013,9]
[334162369,1722805854952,-500.0,0.00023013,9]
[334162370,1722805854961,-500.0,0.00023013,9]
[334162371,1722805854970,-500.0,0.00023013,9]
[334162372,1722805854980,-151.0,0.00023013,7]
[334162373,1722805854990,-500.0,0.00023013,9]
[334162374,1722805854999,-784.78,0.00023013,9]
[334162375,1722805855009,-500.0,0.00023013,9]
[334162376,1722805855019,-1738.84,0.00023013,9]
[334162377,1722805855028,-500.0,0.00023013,9]
[334162378,1722805855039,-500.0,0.00023013,9]
[334162379,1722805855049,-1249.0,0.00023013,9]
[334162380,1722805855059,-500.0,0.00023013,9]
[334162381,1722805855069,-1912.77,0.00023013,9]
[334162382,1722805855079,-648.05,0.00023013,9]
[334162383,1722805855093,-512.44,0.00023013,9]
[334162384,1722805855103,-500.0,0.00023013,9]
[334162385,1722805855113,-700.51,0.00023013,9]
[334162386,1722805855122,-2333.13,0.00023013,9]
[334162387,1722805855131,-1336.78,0.00023013,9]
[334162388,1722805855142,-500.0,0.00023013,9]
[334162389,1722805855152,-500.0,0.00023013,9]
[334162390,1722805855162,-2730.38,0.00023013,9]
[334162391,1722805855173,-500.0,0.00023013,9]
[334162392,1722805855183,-914.73,0.00023013,9]
[334162393,1722805855193,-500.0,0.00023013,9]
[334162394,1722805855202,-500.0,0.00023013,9]
[334162395,1722805855212,-500.0,0.00023013,9]
[334162396,1722805855222,-500.0,0.00023013,9]
[334162397,1722805855232,-500.0,0.00023013,9]
[334162398,1722805855242,-581.05,0.00023013,9]
[334162399,1722805855252,-671.9,0.00023013,9]
[334162400,1722805855261,-2039.74,0.00023013,9]
[334162401,1722805855271,-1746.98,0.00023013,9]
[334162402,1722805855280,-1826.84,0.00023013,9]
[334162403,1722805855290,-500.0,0.00023013,9]
[334162404,1722805855300,-1409.8,0.00023013,9]
[334162405,1722805855310,-617.4,0.00023013,9]
[334162406,1722805855319,-500.0,0.00023013,9]
[334162407,1722805855329,-6817.41,0.00023013,9]
[334162408,1722805855342,-500.0,0.00023013,9]
[334162409,1722805855351,-513.75,0.00023013,9]
[334162410,1722805855360,-1484.97,0.00023013,9]
[334162411,1722805855370,-500.0,0.00023013,9]
[334162412,1722805855380,-2027.34,0.00023013,9]
[334162413,1722805855390,-500.0,0.00023013,9]
[334162414,1722805855399,-500.0,0.00023013,9]
[334162415,1722805855409,-500.0,0.00023013,9]
[334162416,1722805855419,-1047.24,0.00023013,9]
[334162417,1722805855428,-500.0,0.00023013,9]
[334162418,1722805855437,-1539.01,0.00023013,9]
[334162419,1722805855447,-500.0,0.00023013,9]
[334162420,1722805855457,-538.57,0.00023013,9]
[334162421,1722805855466,-500.0,0.00023013,9]
[334162422,1722805855476,-500.0,0.00023013,9]
[334162423,1722805855485,-2337.3,0.00023013,9]
[334162424,1722805855495,-1410.21,0.00023013,9]
[334162425,1722805855505,-2974.83,0.00023013,9]
[334162426,1722805855514,-981.74,0.00023013,9]
[334162427,1722805855524,-500.0,0.00023013,9]
[334162428,1722805855534,-1835.59,0.00023013,9]
[334162429,1722805855542,-500.0,0.00023013,9]
[334162430,1722805855552,-500.0,0.00023013,9]
[334162431,1722805855567,-500.0,0.00023013,9]
[334162432,1722805855577,-1335.18,0.00023013,9]
[334162433,1722805855589,-500.0,0.00023013,9]
[334162434,1722805855599,-500.0,0.00023013,9]
[334162435,1722805855610,-500.0,0.00023013,9]
[334162436,1722805855619,-642.87,0.00023013,9]
[334162437,1722805855629,-500.0,0.00023013,9]
[334162438,1722805855639,-1361.87,0.00023013,9]
[334162439,1722805855651,-500.0,0.00023013,9]
[334162440,1722805855660,-500.0,0.00023013,9]
[334162441,1722805855670,-500.0,0.00023013,9]
[334162442,1722805855680,-500.0,0.00023013,9]
[334162443,1722805855689,-6629.34,0.00023013,9]
[334162444,1722805855699,-1731.8,0.00023013,9]
[334162445,1722805855709,-1551.76,0.00023013,9]
[334162446,1722805855718,-500.0,0.00023013,9]
[334162447,1722805855728,-589.81,0.00023013,9]
[334162448,1722805855739,-263.289158,0.00023013,7]
[334162449,1722805855748,-1218.11,0.00023013,9]
[334162450,1722805855757,-500.0,0.00023013,9]
[334162451,1722805855768,-500.0,0.00023013,9]
[334162452,1722805855777,-500.0,0.00023013,9]
[334162453,1722805855788,-1011.86,0.00023013,9]
[334162454,1722805855799,-500.0,0.00023013,9]
[334162455,1722805855809,-1603.94,0.00023013,9]
[334162456,1722805855818,-2430.72,0.00023013,9]
[334162457,1722805855829,-780.91,0.00023013,9]
[334162458,1722805855842,-500.0,0.00023013,9]
[334162459,1722805855853,-546.2,0.00023013,9]
[334162460,1722805855863,-500.0,0.00023013,9]
[334162461,1722805855872,-1366.44,0.00023013,9]
[334162462,1722805855882,-2362.81,0.00023013,9]
[334162463,1722805855892,-500.0,0.00023013,9]
[334162464,1722805855901,-500.0,0.00023013,9]
[334162465,1722805855911,-2577.06,0.00023013,9]
[334162466,1722805855920,-840.74,0.00023013,9]
[334162467,1722805855930,-1386.14,0.00023013,9]
[334162468,1722805855939,-1616.46,0.00023013,9]
[334162469,1722805855949,-500.0,0.00023013,9]
[334162470,1722805855958,-500.0,0.00023013,9]
[334162471,1722805855967,-500.0,0.00023013,9]
[334162472,1722805855977,-3538.17,0.00023013,9]
[334162473,1722805855986,-500.0,0.00023013,9]
[334162474,1722805855995,-1548.4,0.00023013,9]
[334162475,1722805856006,-500.0,0.00023013,9]
[334162476,1722805856015,-1033.75,0.00023013,9]
[334162477,1722805856025,-500.0,0.00023013,9]
[334162478,1722805856035,-500.0,0.00023013,9]
[334162479,1722805856045,-500.0,0.00023013,9]
[334162480,1722805856054,-500.0,0.00023013,9]
[334162481,1722805856064,-500.0,0.00023013,9]
[334162482,1722805856074,-423.1,0.00023013,9]
[334162483,1722805856083,-500.0,0.00023013,9]
[334162484,1722805856096,-1092.49,0.00023013,9]
[334162485,1722805856106,-9086.99,0.00023013,9]
[334162486,1722805856115,-1168.4,0.00023013,9]
[334162487,1722805856125,-1765.93,0.00023013,9]
[334162488,1722805856134,-500.0,0.00023013,9]
[334162489,1722805856144,-1340.4,0.00023013,9]
[334162490,1722805856154,-1384.98,0.00023013,9]
[334162491,1722805856164,-1030.71,0.00023013,9]
[334162492,1722805856173,-500.0,0.00023013,9]
[334162493,1722805856183,-500.0,0.00023013,9]
[334162494,1722805856193,-500.0,0.00023013,9]
[334162495,1722805856203,-1452.74,0.00023013,9]
[334162496,1722805856212,-500.0,0.00023013,9]
[334162497,1722805856222,-1306.99,0.00023013,9]
[334162498,1722805856231,-500.0,0.00023013,9]
[334162499,1722805856241,-500.0,0.00023013,9]
[334162500,1722805856251,-356.33492657,0.00023013,9]
[334162501,1722805856260,-937.33,0.00023013,9]
[334162502,1722805856269,-1739.37,0.00023013,9]
[334162503,1722805856279,-2369.95,0.00023013,9]
[334162504,1722805856289,-151.0,0.00023013,7]
[334162505,1722805856299,-500.0,0.00023013,9]
[334162506,1722805856308,-1656.69,0.00023013,9]
[334162507,1722805856318,-272.666974,0.00023013,7]
[334162508,1722805856328,-2376.7,0.00023013,9]
[334162509,1722805856339,-500.0,0.00023013,9]
[334162510,1722805856348,-500.0,0.00023013,9]
[334162511,1722805856358,-500.0,0.00023013,9]
[334162512,1722805856368,-500.0,0.00023013,9]
[334162513,1722805856377,-2350.99,0.00023013,9]
[334162514,1722805856387,-500.0,0.00023013,9]
[334162515,1722805856396,-500.0,0.00023013,9]
[334162516,1722805856405,-500.0,0.00023013,9]
[334162517,1722805856415,-1993.53,0.00023013,9]
[334162518,1722805856424,-500.0,0.00023013,9]
[334162519,1722805856434,-500.0,0.00023013,9]
[334162520,1722805856443,-497.65182835,0.00023013,9]
[334162521,1722805856453,-151.0,0.00023013,7]
[334162522,1722805856463,-151.0,0.00023013,7]
[334162523,1722805856473,-758.04,0.00023013,9]
[334162524,1722805856482,-500.0,0.00023013,9]
[334162525,1722805856491,-500.0,0.00023013,9]
[334162526,1722805856501,-151.0,0.00023013,7]
[334162527,1722805856511,-1187.35,0.00023013,9]
[334162528,1722805856520,-151.0,0.00023013,7]
[334162529,1722805856530,-500.0,0.00023013,9]
[334162530,1722805856539,-500.0,0.00023013,9]
[334162531,1722805856549,-1551.59,0.00023013,9]
[334162532,1722805856559,-1636.69,0.00023013,9]
[334162533,1722805856570,-1247.64,0.00023013,9]
[334162534,1722805856580,-857.36,0.00023013,9]
[334162535,1722805856595,-500.0,0.00023013,9]
[334162536,1722805856606,-500.0,0.00023013,9]
[334162537,1722805856616,-777.93,0.00023013,9]
[334162538,1722805856626,-531.47,0.00023013,9]
[334162539,1722805856635,-1062.23,0.00023013,9]
[334162540,1722805856646,-500.0,0.00023013,9]
[334162541,1722805856655,-500.0,0.00023013,9]
[334162542,1722805856665,-500.0,0.00023013,9]
[334162543,1722805856674,-1536.84,0.00023013,9]
[334162544,1722805856684,-5130.9,0.00023013,9]
[334162545,1722805856693,-500.0,0.00023013,9]
[334162546,1722805856703,-500.0,0.00023013,9]
[334162547,1722805856713,-500.0,0.00023013,9]
[334162548,1722805856722,-3352.44,0.00023013,9]
[334162549,1722805856732,-1619.45,0.00023013,9]
[334162550,1722805856742,-500.0,0.00023013,9]
[334162551,1722805856752,-500.0,0.00023013,9]
[334162552,1722805856762,-500.0,0.00023013,9]
[334162553,1722805856771,-500.0,0.00023013,9]
[334162554,1722805856781,-8524.14,0.00023013,9]
[334162555,1722805856791,-500.0,0.00023013,9]
[334162556,1722805856800,-500.0,0.00023013,9]
[334162557,1722805856810,-500.0,0.00023013,9]
[334162558,1722805856820,-1025.18,0.00023013,9]
[334162559,1722805856830,-2009.05,0.00023013,9]
[334162560,1722805856842,-590.4,0.00023013,9]
[334162561,1722805856851,-500.0,0.00023013,9]
[334162562,1722805856861,-7112.16,0.00023013,9]
[334162563,1722805856870,-500.0,0.00023013,9]
[334162564,1722805856879,-1553.57,0.00023013,9]
[334162565,1722805856889,-500.0,0.00023013,9]
[334162566,1722805856899,-500.0,0.00023013,2]
[334162567,1722805856909,-500.0,0.00023013,9]
[334162568,1722805856918,-1722.79,0.00023013,9]
[334162569,1722805857010,-1056.97,0.00023013,9]
[334162570,1722805857019,-500.0,0.00023013,9]
[334162571,1722805857028,-500.0,0.00023013,2]
[334162572,1722805857037,-500.0,0.00023013,9]
[334162573,1722805857046,-500.0,0.00023013,2]
[334162574,1722805857055,-294.63900552,0.00023013,2]
[334162575,1722805857065,-3317.33,0.00023013,9]
[334162576,1722805857074,-500.0,0.00023013,9]
[334162577,1722805857083,-500.0,0.00023013,9]
[334162578,1722805857095,-500.0,0.00023013,9]
[334162579,1722805857104,-1901.52,0.00023013,9]
[334162580,1722805857114,-500.0,0.00023013,9]
[334162581,1722805857124,-500.0,0.00023013,9]
[334162582,1722805857133,-500.0,0.00023013,9]
[334162583,1722805857143,-500.0,0.00023013,9]
[334162584,1722805857152,-2352.85,0.00023013,9]
[334162585,1722805857161,-9656.6,0.00023013,9]
[334162586,1722805857170,-849.98,0.00023013,9]
[334162587,1722805857179,-1993.32,0.00023013,9]
[334162588,1722805857189,-800.16,0.00023013,9]
[334162589,1722805857199,-500.0,0.00023013,9]
[334162590,1722805857208,-1408.64,0.00023013,9]
[334162591,1722805857217,-500.0,0.00023013,9]
[334162592,1722805857226,-1339.66,0.00023013,9]
[334162593,1722805857235,-500.0,0.00023013,9]
[334162594,1722805857244,-865.36,0.00023013,9]
[334162595,1722805857253,-1318.81,0.00023013,9]
[334162596,1722805857263,-500.0,0.00023013,9]
[334162597,1722805857271,-500.0,0.00023013,9]
[334162598,1722805857281,-500.0,0.00023013,9]
[334162599,1722805857290,-500.0,0.00023013,9]
[334162600,1722805857299,-2831.73,0.00023013,9]
[334162601,1722805857309,-1471.03,0.00023013,9]
[334162602,1722805857318,-695.79,0.00023013,9]
[334162603,1722805857329,-151.0,0.00023013,7]
[334162604,1722805857338,-151.0,0.00023013,7]
[334162605,1722805857347,-151.0,0.00023013,7]
[334162606,1722805857356,-230.976461,0.00023013,7]
[334162607,1722805857365,-2363.17,0.00023013,9]
[334162608,1722805857374,-779.57,0.00023013,9]
[334162609,1722805857383,-500.0,0.00023013,9]
[334162610,1722805857394,-500.0,0.00023013,9]
[334162611,1722805857403,-500.0,0.00023013,9]
[334162612,1722805857412,-500.0,0.00023013,9]
[334162613,1722805857421,-500.0,0.00023013,9]
[334162614,1722805857430,-500.0,0.00023013,9]
[334162615,1722805857439,-500.0,0.00023013,9]
[334162616,1722805857449,-500.0,0.00023013,9]
[334162617,1722805857458,-515.07,0.00023013,9]
[334162618,1722805857468,-500.0,0.00023013,9]
[334162619,1722805857477,-1951.22,0.00023013,9]
[334162620,1722805857486,-500.0,0.00023013,9]
[334162621,1722805857496,-278.42396216,0.0002305,2]
[334162622,1722805857505,-151.0,0.00023079,7]
[334162623,1722805857514,-151.0,0.00023079,7]
[334162624,1722805857524,-158.55,0.00023079,7]
[334162625,1722805857534,-151.0,0.00023079,7]
[334162626,1722805857544,-158.55,0.00023079,7]
[334162627,1722805857553,-197.531792,0.00023079,7]
[334162628,1722805857568,-163.06583263,0.00023085,2]
[334162629,1722805857578,-508.79891608,0.00023092,2]
[334162630,1722805857588,-500.0,0.00023095,9]
[334162631,1722805857597,-500.0,0.00023095,9]
[334162632,1722805857607,-581.88162317,0.00023095,9]
[334162633,1722805857616,-500.0,0.00023095,9]
[334162634,1722805857625,-500.0,0.00023095,9]
[334162635,1722805857634,-500.0,0.00023095,9]
[334162636,1722805857645,-500.0,0.00023095,9]
[334162637,1722805857655,-500.0,0.00023095,9]
[334162638,1722805857665,-500.0,0.00023095,9]
[334162639,1722805857674,-500.0,0.00023095,9]
[334162640,1722805857683,-500.0,0.00023095,9]
[334162641,1722805857693,-500.0,0.00023095,9]
[334162642,1722805857703,-500.0,0.00023095,9]
[334162643,1722805857711,-500.0,0.00023095,9]
[334162644,1722805857720,-300.0,0.00023095,9]
[334162645,1722805857729,-500.0,0.00023095,9]
[334162646,1722805857739,-500.0,0.00023095,9]
[334162647,1722805857748,-717.19,0.00023095,9]
[334162648,1722805857757,-500.0,0.00023095,9]
[334162649,1722805857766,-500.0,0.00023095,9]
[334162650,1722805857776,-562.33479854,0.00023095,9]
[334162651,1722805857785,-500.0,0.00023095,9]
[334162652,1722805857794,-653.16,0.00023095,9]
[334162653,1722805857804,-500.0,0.00023095,9]
[334162654,1722805857813,-500.0,0.00023095,9]
[334162655,1722805857823,-500.0,0.00023095,9]
[334162656,1722805857832,-500.0,0.00023095,9]
[334162657,1722805857844,-500.0,0.00023095,9]
[334162658,1722805857853,-500.0,0.00023095,9]
[334162659,1722805857863,-500.0,0.00023095,9]
[334162660,1722805857872,-500.0,0.00023095,9]
[334162661,1722805857881,-500.0,0.00023095,9]
[334162662,1722805857890,-500.0,0.00023095,9]
[334162663,1722805857900,-1121.27,0.00023095,9]
[334162664,1722805857909,-500.0,0.00023095,9]
[334162665,1722805857918,-500.0,0.00023095,9]
[334162666,1722805857928,-500.0,0.00023095,9]
[334162667,1722805857938,-500.0,0.00023095,9]
[334162668,1722805857947,-500.0,0.00023095,9]
[334162669,1722805857957,-500.0,0.00023095,9]
[334162670,1722805857966,-500.0,0.00023095,9]
[334162671,1722805857975,-500.0,0.00023095,9]
[334162672,1722805857985,-500.0,0.00023095,9]
[334162673,1722805857994,-433.40924755,0.00023095,9]
[334162674,1722805858004,-500.0,0.00023095,9]
[334162675,1722805858013,-500.0,0.00023095,9]
[334162676,1722805858023,-800.19,0.00023095,9]
[334162677,1722805858032,-500.0,0.00023095,9]
[334162678,1722805858042,-500.0,0.00023095,9]
[334162679,1722805858051,-593.38,0.00023095,9]
[334162680,1722805858062,-500.0,0.00023095,9]
[334162681,1722805858071,-500.0,0.00023095,9]
[334162682,1722805858083,-500.0,0.00023095,9]
[334162683,1722805858095,-500.0,0.00023095,9]
[334162684,1722805858105,-500.0,0.00023095,9]
[334162685,1722805858115,-500.0,0.00023095,9]
[334162686,1722805858126,-500.0,0.00023095,9]
[334162687,1722805858136,-500.0,0.00023095,9]
[334162688,1722805858147,-500.0,0.00023095,9]
[334162689,1722805858156,-500.0,0.00023095,9]
[334162690,1722805858166,-500.0,0.00023095,9]
[334162691,1722805858175,-548.24,0.00023095,9]
[334162692,1722805858186,-500.0,0.00023095,9]
[334162693,1722805858195,-500.0,0.00023095,9]
[334162694,1722805858205,-850.63,0.00023095,9]
[334162695,1722805858215,-500.0,0.00023095,9]
[334162696,1722805858224,-500.0,0.00023095,9]
[334162697,1722805858235,-500.0,0.00023095,9]
[334162698,1722805858244,-588.3,0.00023095,9]
[334162699,1722805858253,-500.0,0.00023095,9]
[334162700,1722805858263,-500.0,0.00023095,9]
[334162701,1722805858273,-500.0,0.00023095,9]
[334162702,1722805858283,-500.0,0.00023095,9]
[334162703,1722805858293,-500.0,0.00023095,9]
[334162704,1722805858303,-500.0,0.00023095,9]
[334162705,1722805858312,-500.0,0.00023095,9]
[334162706,1722805858321,-500.0,0.00023095,9]
[334162707,1722805858331,-701.06,0.00023095,9]
[334162708,1722805858343,-500.0,0.00023095,9]
[334162709,1722805858352,-500.0,0.00023095,9]
[334162710,1722805858361,-500.0,0.00023095,9]
[334162711,1722805858370,-500.0,0.00023095,9]
[334162712,1722805858380,-500.0,0.00023095,9]
[334162713,1722805858389,-500.0,0.00023095,9]
[334162714,1722805858399,-500.0,0.00023095,9]
[334162715,1722805858408,-500.0,0.00023095,9]
[334162716,1722805858417,-500.0,0.00023095,9]
[334162717,1722805858426,-500.0,0.00023095,9]
[334162718,1722805858436,-500.0,0.00023095,9]
[334162719,1722805858446,-689.16,0.00023095,9]
[334162720,1722805858455,-500.0,0.00023095,9]
[334162721,1722805858466,-500.0,0.00023095,9]
[334162722,1722805858476,-500.0,0.00023095,9]
[334162723,1722805858485,-500.0,0.00023095,9]
[334162724,1722805858495,-500.0,0.00023095,9]
[334162725,1722805858506,-500.0,0.00023095,9]
[334162726,1722805858516,-754.72,0.00023095,9]
[334162727,1722805858525,-500.0,0.00023095,9]
[334162728,1722805858536,-500.0,0.00023095,9]
[334162729,1722805858546,-500.0,0.00023095,9]
[334162730,1722805858556,-500.0,0.00023095,9]
[334162731,1722805858569,-500.0,0.00023095,9]
[334162732,1722805858580,-500.0,0.00023095,9]
[334162733,1722805858591,-500.0,0.00023095,9]
[334162734,1722805858602,-500.0,0.00023095,9]
[334162735,1722805858612,-500.0,0.00023095,9]
[334162736,1722805858621,-500.0,0.00023095,9]
[334162737,1722805858631,-500.0,0.00023095,9]
[334162738,1722805858640,-500.0,0.00023095,9]
[334162739,1722805858652,-500.0,0.00023095,9]
[334162740,1722805858661,-500.0,0.00023095,9]
[334162741,1722805858671,-228.92339905,0.00023095,9]
[334162742,1722805858681,-500.0,0.00023095,9]
[334162743,1722805858691,-500.0,0.00023095,9]
[334162744,1722805858701,-233.26933188,0.00023095,9]
[334162745,1722805858711,-730.4,0.00023095,9]
[334162746,1722805858721,-1009.26,0.00023095,9]
[334162747,1722805858730,-500.0,0.00023095,9]
[334162748,1722805858740,-539.24,0.00023095,9]
[334162749,1722805858750,-500.0,0.00023095,9]
[334162750,1722805858759,-500.0,0.00023095,9]
[334162751,1722805858769,-369.88721731,0.00023095,9]
[334162752,1722805858779,-500.0,0.00023095,9]
[334162753,1722805858788,-500.0,0.00023095,9]
[334162754,1722805858798,-615.35,0.00023095,9]
[334162755,1722805858807,-500.0,0.00023095,9]
[334162756,1722805858817,-500.0,0.00023095,9]
[334162757,1722805858826,-726.79,0.00023095,9]
[334162758,1722805858835,-500.0,0.00023095,9]
[334162759,1722805858850,-500.0,0.00023095,9]
[334162760,1722805858859,-500.0,0.00023095,9]
[334162761,1722805858869,-500.0,0.00023095,9]
[334162762,1722805858879,-500.0,0.00023095,9]
[334162763,1722805858888,-500.0,0.00023095,9]
[334162764,1722805858897,-500.0,0.00023095,9]
[334162765,1722805858907,-500.0,0.00023095,9]
[334162766,1722805858916,-500.0,0.00023095,9]
[334162767,1722805858926,-500.0,0.00023095,9]
[334162768,1722805858935,-500.0,0.00023095,9]
[334162769,1722805858945,-500.0,0.00023095,9]
[334162770,1722805858954,-500.0,0.00023095,9]